bitfinex-derivatives/quotes_ETHF0:USTF0_20251126
["timestamp","ask_amount","ask_price","bid_price","bid_amount"]
[1764178095555,0.276,2980.8,2978.5,4.40810334]
[1764178095856,0.276,2980.0,2978.2,0.00303181]
[1764178096549,0.966,2980.0,2978.2,0.00303181]
[1764178096748,0.276,2980.0,2978.2,0.00303181]
[1764178096949,0.00504134,2979.4,2978.8,0.00504134]
[1764178097149,0.00504134,2979.4,2978.3,4.27560864]
[1764178097347,0.00504134,2979.4,2978.4,4.3402499]
[1764178098153,0.00504134,2979.4,2978.6,0.00504134]
[1764178098756,0.00504134,2979.4,2978.7,4.0718499]
[1764178098952,0.276,2980.8,2978.7,8.47436607]
[1764178099157,0.276,2980.8,2978.7,4.40251617]
[1764178099456,0.276,2980.8,2978.8,4.30137313]
[1764178099853,0.276,2980.8,2978.6,0.00504134]
[1764178099854,4.3478499,2980.8,2978.6,0.00504134]
[1764178100070,0.00504134,2980.0,2978.8,4.30137313]
[1764178100359,0.00504134,2980.0,2978.7,4.0718499]
[1764178100759,0.00504134,2980.0,2978.7,4.44124827]
[1764178100957,0.00504134,2980.0,2978.6,0.00504134]
[1764178101159,0.28104134,2980.0,2978.6,0.00504134]
[1764178101757,4.0718499,2979.9,2977.6,0.2684]
[1764178101952,0.44387,2979.2,2976.5,0.16802]
[1764178102155,0.276,2979.2,2977.0,4.0718499]
[1764178102556,4.0718499,2979.1,2976.5,0.16802]
[1764178102756,0.00504134,2978.3,2977.8,0.00504134]
[1764178103155,0.00807315,2978.3,2977.8,0.00929443]
[1764178103361,0.00807315,2978.3,2976.8,0.2684]
[1764178103956,0.276,2979.2,2976.8,0.2684]
[1764178103957,4.2396899,2979.7,2977.0,4.0718499]
[1764178104161,0.70385,2979.6,2977.0,4.0718499]
[1764178104362,0.2217,2980.0,2977.1,4.49007091]
[1764178104668,0.2217,2980.8,2978.4,3.65055991]
[1764178104958,0.2937,2980.8,2978.4,3.65055991]
[1764178105161,0.00504134,2979.9,2979.3,0.00504134]
[1764178110367,6.00504134,2979.9,2978.4,0.27169825]
[1764178110667,0.17287134,2979.9,2978.4,0.27169825]
[1764178111268,0.17287134,2979.9,2978.4,0.00329825]
[1764178111470,1.839,2979.8,2978.9,0.00504134]
[1764178111771,2.53739798,2979.6,2978.4,0.00329825]
[1764178111973,2.75909798,2979.2,2977.0,2.53739798]
[1764178112367,4.33909798,2979.2,2977.0,2.53739798]
[1764178112771,4.33909798,2979.2,2978.1,0.00504134]
[1764178113267,0.16788,2979.0,2978.1,0.00743638]
[1764178113472,1.16466404,2978.9,2978.1,0.00743638]
[1764178113661,1.16466404,2978.9,2976.7,0.16801]
[1764178113662,3.70206202,2978.8,2976.7,0.16801]
[1764178113864,1.16466404,2978.5,2976.9,2.53739798]
[1764178114069,1.16466404,2978.5,2976.6,2.53739798]
[1764178114070,0.2217,2978.4,2976.6,2.53739798]
[1764178114266,1.16466404,2978.1,2977.0,2.53739798]
[1764178114570,1.16466404,2979.3,2977.3,3.38357254]
[1764178114773,1.16466404,2979.3,2976.0,0.2684]
[1764178114774,1.16466404,2979.8,2977.4,3.38357254]
[1764178115072,1.16466404,2979.8,2976.0,41.91986311]
[1764178115073,0.00504134,2978.3,2977.9,3.38357254]
[1764178116371,0.00504134,2978.3,2977.7,0.00504134]
[1764178116772,0.17296134,2978.3,2977.7,0.00504134]
[1764178117264,0.17296134,2978.3,2976.8,3.65625273]
[1764178117674,0.00504134,2978.3,2976.8,3.65625273]
[1764178118569,0.16796,2977.6,2977.3,0.00336087]
[1764178118765,0.16796,2977.5,2976.8,0.00428019]
[1764178119178,0.16799,2977.0,2976.4,0.69378]
[1764178119486,0.168,2976.9,2976.4,0.69378]
[1764178119666,0.2217,2976.8,2976.4,0.37313603]
[1764178119865,0.16806,2975.9,2975.1,1.06722746]
[1764178120063,1.16466404,2975.7,2975.1,0.00327327]
[1764178120372,0.17310134,2975.8,2975.1,0.00327327]
[1764178120677,0.16806,2975.7,2974.4,0.2912]
[1764178121071,0.00504134,2975.8,2974.4,0.2912]
[1764178121072,0.00504134,2975.8,2974.7,3.38357254]
[1764178121574,0.00504134,2975.8,2974.7,3.38646452]
[1764178122478,0.00504134,2975.8,2975.2,3.67477254]
[1764178123170,1.16466404,2977.3,2975.7,3.38357254]
[1764178123480,1.16466404,2977.4,2975.2,0.2912]
[1764178123666,1.16466404,2977.3,2975.2,0.2912]
[1764178124174,0.00504134,2976.5,2976.0,0.00504134]
[1764178124774,0.00504134,2976.5,2976.0,0.29624134]
[1764178125174,0.0033766,2977.3,2976.1,3.38357254]
[1764178125387,0.0033766,2977.3,2976.8,0.2912]
[1764178125583,0.0033766,2977.3,2976.8,0.29550829]
[1764178125879,0.0033766,2977.3,2976.8,0.00430829]
[1764178126170,0.00841794,2977.3,2976.8,0.00430829]
[1764178128075,0.2217,2978.4,2976.9,3.38357254]
[1764178128470,0.16791,2978.5,2976.9,3.38357254]
[1764178129071,0.17222545,2978.5,2976.9,3.38357254]
[1764178129277,0.00504134,2978.0,2977.6,0.2912]
[1764178130378,0.00431545,2978.5,2977.6,0.2912]
[1764178131583,0.00504134,2978.3,2977.6,0.2912]
[1764178132175,0.00504134,2978.3,2977.5,0.00504134]
[1764178133882,0.16793,2978.1,2977.5,0.00504134]
[1764178134284,6.0,2978.1,2976.8,0.00430829]
[1764178134499,0.00504134,2978.3,2976.8,0.00430829]
[1764178134500,0.16798,2977.3,2976.8,0.00430829]
[1764178134684,2.891,2978.1,2976.8,0.00430829]
[1764178134874,0.16796,2977.6,2976.8,0.00430829]
[1764178135075,0.16798,2977.3,2976.8,0.00430829]
[1764178135283,1.16466404,2978.1,2976.8,0.00934963]
[1764178135677,0.16797,2977.4,2976.8,0.00934963]
[1764178136088,0.16794,2977.9,2976.8,0.00934963]
[1764178136289,0.00504134,2978.3,2976.8,0.00934963]
[1764178136290,0.16795,2977.8,2976.8,0.00934963]
[1764178136485,0.16795,2977.7,2976.8,0.00934963]
[1764178136786,0.16795,2977.7,2976.9,2.5389927]
[1764178137087,0.16796,2977.6,2976.9,2.5389927]
[1764178137276,0.16796,2977.6,2976.8,0.00934963]
[1764178137477,1.16970538,2978.3,2976.8,0.00934963]
[1764178137680,1.16466404,2978.1,2976.9,2.5389927]
[1764178137884,0.00504134,2978.3,2976.9,2.5389927]
[1764178138081,0.16793,2978.1,2976.9,2.5389927]
[1764178138280,0.16793,2978.1,2976.8,2.54834233]
[1764178138483,0.16793,2978.0,2976.8,2.54834233]
[1764178138687,0.16794,2977.9,2976.8,2.54834233]
[1764178138988,0.16795,2977.7,2976.8,2.54834233]
[1764178139687,0.16795,2977.7,2976.9,2.5389927]
[1764178140281,0.16796,2977.6,2976.9,2.5389927]
[1764178140477,0.16796,2977.6,2976.8,0.00934963]
[1764178140478,1.16970538,2978.3,2976.8,0.00934963]
[1764178140691,0.16796,2977.5,2976.8,2.54834233]
[1764178140985,0.00504134,2978.3,2977.1,0.2912]
[1764178141287,0.16799,2977.1,2976.8,0.00934963]
[1764178141788,0.16799,2977.0,2976.8,0.00934963]
[1764178141994,1.33262404,2977.6,2976.8,0.00934963]
[1764178142291,0.16796,2977.5,2976.8,0.00934963]
[1764178142482,0.2219,2977.8,2976.8,0.00934963]
[1764178142678,1.38656404,2977.8,2976.8,0.00934963]
[1764178142878,1.16466404,2977.7,2976.8,0.00934963]
[1764178143087,0.16798,2977.2,2976.8,0.00934963]
[1764178143390,1.16466404,2977.7,2976.8,0.00934963]
[1764178143585,0.16799,2977.0,2976.8,0.00934963]
[1764178143784,0.2219,2977.8,2976.8,0.00934963]
[1764178143785,0.168,2976.9,2976.8,0.00934963]
[1764178144088,1.16466404,2977.5,2976.0,0.2912]
[1764178144285,1.16466404,2977.5,2975.3,0.16808]
[1764178144286,0.16801,2976.7,2975.5,2.5389927]
[1764178144682,0.16802,2976.5,2975.5,2.5389927]
[1764178144883,0.16799,2977.1,2976.0,2.5389927]
[1764178145084,1.16466404,2977.6,2976.0,2.5389927]
[1764178145286,0.16802,2976.5,2976.3,0.00504134]
[1764178146488,0.16805,2975.9,2975.2,0.2912]
[1764178147486,0.17121517,2975.9,2975.3,0.00504134]
[1764178148291,0.00316517,2975.9,2975.7,0.2802]
[1764178148879,0.16801,2976.6,2975.7,6.2802]
[1764178149191,0.16801,2976.6,2975.7,0.2802]
[1764178149690,0.16801,2976.6,2975.9,2.5389927]
[1764178149893,0.1720748,2976.6,2975.7,0.2802]
[1764178150094,0.16802,2976.5,2975.7,0.2802]
[1764178150593,0.2165,2976.4,2975.3,0.00504134]
[1764178150790,0.16804,2976.1,2975.3,0.00504134]
[1764178150986,0.2165,2976.4,2975.3,0.00504134]
[1764178150987,0.16805,2976.0,2975.3,0.00504134]
[1764178151188,0.2165,2976.4,2975.3,0.00504134]
[1764178151486,0.16806,2975.8,2975.3,0.00504134]
[1764178151895,1.33268404,2976.5,2975.7,0.2802]
[1764178152096,0.0040648,2976.6,2975.7,0.2802]
[1764178152285,1.16872884,2976.6,2975.3,0.00504134]
[1764178152486,0.16804,2976.2,2975.7,0.2802]
[1764178153192,0.16804,2976.2,2975.3,0.00504134]
[1764178154882,2.7554927,2976.4,2975.3,0.00504134]
[1764178155096,0.16807,2975.6,2975.3,0.00504134]
[1764178155297,0.16807,2975.6,2975.2,0.00428212]
[1764178155499,0.16808,2975.5,2975.2,0.00428212]
[1764178155999,0.16808,2975.4,2975.2,0.00428212]
[1764178156400,0.16809,2975.3,2975.2,0.00428212]
[1764178156797,0.0040648,2976.6,2976.0,0.2802]
[1764178157101,1.16466404,2978.4,2977.1,0.2802]
[1764178157293,0.16789,2978.8,2978.0,2.5389927]
[1764178157794,1.16466404,2978.9,2977.1,2.8191927]
[1764178157998,0.00504134,2978.3,2977.7,0.00504134]
[1764178158594,0.17296134,2978.3,2977.7,0.00504134]
[1764178158992,0.00504134,2978.3,2977.1,0.2843313]
[1764178159192,0.16794,2977.9,2977.1,0.2843313]
[1764178160987,0.16794,2977.9,2977.1,0.0041313]
[1764178161187,0.16795,2977.7,2977.1,0.0041313]
[1764178161401,0.16796,2977.5,2976.6,0.2802]
[1764178162405,0.16796,2977.5,2976.6,0.28432062]
[1764178162791,0.2259,2977.8,2976.6,0.00412062]
[1764178162999,0.168,2976.8,2976.6,0.00412062]
[1764178163304,0.16801,2976.7,2976.6,0.00412062]
[1764178164404,0.16801,2976.6,2975.4,0.2802]
[1764178164600,0.00504134,2976.3,2975.5,2.5389927]
[1764178165500,0.00504134,2976.3,2975.5,2.54198362]
[1764178165804,0.00504134,2976.3,2975.5,0.00299092]
[1764178166004,0.00504134,2976.3,2974.7,2.5389927]
[1764178166199,0.00504134,2976.3,2974.3,3.16293416]
[1764178166200,2.5389927,2976.0,2974.3,0.2802]
[1764178166500,2.5389927,2976.0,2973.6,0.2802]
[1764178166501,0.16811,2974.9,2973.6,0.2802]
[1764178166701,1.16466404,2975.5,2973.7,2.88409229]
[1764178166907,0.00504134,2974.5,2974.3,0.2802]
[1764178167205,0.16805,2975.9,2974.3,1.48577419]
[1764178167609,0.16805,2975.9,2974.7,2.88409229]
[1764178167998,0.00504134,2975.6,2975.0,0.00504134]
[1764178171907,0.00504134,2975.6,2975.2,0.2802]
[1764178172098,0.00425149,2975.9,2975.2,0.2802]
[1764178173103,0.00504134,2975.8,2975.2,0.2802]
[1764178176003,0.00504134,2975.8,2975.7,0.2829]
[1764178176198,0.00425149,2975.9,2975.7,0.2829]
[1764178176713,1.33263404,2977.3,2975.7,0.2829]
[1764178176894,0.38948,2977.1,2975.7,0.2829]
[1764178177100,0.00504134,2976.7,2975.7,0.2829]
[1764178177800,0.00796878,2976.7,2975.7,0.2829]
[1764178179910,0.16802,2976.4,2975.7,0.2829]
[1764178180710,0.16802,2976.4,2975.2,0.2802]
[1764178181110,0.16806,2975.8,2975.0,0.28794134]
[1764178181310,0.16803,2976.3,2975.0,0.28794134]
[1764178181706,0.16806,2975.9,2975.0,0.28794134]
[1764178182912,0.2254,2976.4,2975.0,0.28794134]
[1764178182913,0.16807,2975.7,2975.0,0.28794134]
[1764178183308,0.2216,2975.7,2975.0,0.00504134]
[1764178183612,0.2216,2975.7,2974.3,0.2829]
[1764178183913,0.16809,2975.3,2974.3,0.2829]
[1764178184806,0.00504134,2975.1,2974.5,0.00504134]
[1764178186414,0.00504134,2975.1,2975.0,0.2829]
[1764178187413,0.16802,2976.5,2975.0,6.2829]
[1764178187719,0.16802,2976.5,2975.0,0.2829]
[1764178188309,0.00504134,2976.0,2975.0,0.2829]
[1764178188514,0.00504134,2976.0,2975.0,0.451]
[1764178188917,0.00504134,2976.0,2975.1,0.1681]
[1764178189119,0.00504134,2976.0,2975.7,0.2829]
[1764178189919,0.168,2976.9,2975.7,0.2829]
[1764178190318,1.16466404,2977.0,2975.7,0.2829]
[1764178190517,0.17093744,2976.7,2975.7,0.2829]
[1764178190720,0.16803,2976.3,2975.2,1.20557419]
[1764178190923,0.16803,2976.3,2975.1,1.20557419]
[1764178191227,0.16803,2976.3,2975.0,1.48847419]
[1764178191417,0.16805,2976.0,2975.0,1.48847419]
[1764178192817,0.16805,2975.9,2975.0,0.2829]
[1764178194929,1.16466404,2976.3,2975.0,0.2829]
[1764178195129,1.33772538,2976.5,2975.4,0.2829]
[1764178195327,0.17306134,2976.5,2975.4,0.2829]
[1764178195626,0.16802,2976.4,2975.4,1.48847419]
[1764178195825,0.16802,2976.4,2975.4,0.2829]
[1764178197225,1.33269404,2976.3,2975.4,0.2829]
[1764178198022,0.00504134,2976.5,2976.4,0.4803]
[1764178198224,1.33261404,2977.7,2976.6,0.2829]
[1764178198428,0.16795,2977.7,2976.6,0.2829]
[1764178199131,0.16797,2977.4,2976.6,0.2829]
[1764178199321,0.17301134,2977.4,2976.6,0.2829]
[1764178199929,0.17301134,2977.4,2976.4,0.002585]
[1764178199930,0.16798,2977.1,2976.4,0.002585]
[1764178200133,0.00504134,2977.4,2976.4,0.002585]
[1764178200134,0.16799,2976.9,2976.4,0.002585]
[1764178200425,0.00504134,2977.4,2976.4,0.002585]
[1764178200630,0.00504134,2977.4,2977.1,0.2829]
[1764178200930,1.16466404,2978.8,2977.8,0.2829]
[1764178201233,1.73591203,2979.0,2977.8,0.2829]
[1764178201234,1.16466404,2979.6,2978.5,0.2829]
[1764178201531,1.16466404,2980.1,2978.5,0.2829]
[1764178201722,1.16466404,2980.0,2978.5,0.2857967]
[1764178201918,0.00336088,2979.6,2979.0,0.00504134]
[1764178203430,0.2217,2979.2,2978.5,0.0028967]
[1764178203623,0.16788,2978.9,2977.8,0.2829]
[1764178203926,3.10579229,2979.2,2977.1,0.2829]
[1764178204325,3.10579229,2979.2,2977.9,0.00504134]
[1764178204629,3.10579229,2979.2,2977.1,0.2829]
[1764178204630,0.16791,2978.4,2977.1,0.2829]
[1764178204831,0.16791,2978.4,2977.9,0.00394367]
[1764178205628,0.17295134,2978.4,2977.9,0.00898501]
[1764178206828,0.16792,2978.3,2977.9,0.00898501]
[1764178207335,0.16792,2978.2,2977.9,0.00898501]
[1764178207528,6.00504134,2978.4,2977.9,0.00504134]
[1764178207832,6.00504134,2978.4,2976.4,0.2829]
[1764178207833,0.16795,2977.7,2976.4,0.2829]
[1764178208135,0.16796,2977.6,2976.4,0.2829]
[1764178208637,0.17037852,2977.6,2976.7,0.00504134]
[1764178209339,0.16798,2977.2,2976.7,0.00504134]
[1764178210327,0.00241852,2977.6,2976.7,0.00504134]
[1764178210633,0.2304,2977.1,2976.7,0.00504134]
[1764178210834,0.00241852,2977.6,2976.4,0.00390509]
[1764178210835,0.00241852,2977.6,2976.4,0.27230509]
[1764178211040,0.17037852,2977.6,2976.4,0.27230509]
[1764178211529,0.16797,2977.4,2976.4,0.27230509]
[1764178211730,0.00241852,2977.6,2976.4,0.27230509]
[1764178211731,0.16797,2977.3,2976.4,0.27230509]
[1764178211932,0.16799,2977.0,2976.6,0.00504134]
[1764178212135,0.16802,2976.5,2976.4,0.00390509]
[1764178212440,0.16806,2975.8,2974.5,1.07863067]
[1764178212736,0.2209,2975.7,2973.6,0.2684]
[1764178213234,0.00504134,2974.9,2974.4,0.27344134]
[1764178213438,0.00911671,2974.9,2974.4,0.27344134]
[1764178214532,0.16801,2976.7,2974.8,2.88409229]
[1764178214735,0.16801,2976.6,2974.8,2.88409229]
[1764178214935,1.16466404,2977.4,2975.2,0.2684]
[1764178215236,4.04875633,2977.7,2975.2,3.15249229]
[1764178215434,0.3897,2976.8,2975.2,0.2684]
[1764178215636,0.00504134,2976.3,2975.7,0.00504134]
[1764178215836,0.00504134,2976.3,2975.7,0.00878645]
[1764178217136,0.00276179,2976.8,2976.0,0.2684]
[1764178217735,0.00276179,2976.8,2976.2,2.88409229]
[1764178218038,0.00276179,2976.8,2976.0,0.2684]
[1764178218237,0.00504134,2976.7,2976.0,0.2684]
[1764178218441,0.00504134,2976.7,2975.7,0.00878645]
[1764178218442,0.17305134,2976.7,2975.7,0.00878645]
[1764178218740,0.16801,2976.6,2975.7,0.00878645]
[1764178219134,0.16802,2976.4,2975.7,0.00878645]
[1764178219838,0.00504134,2976.7,2975.7,2.89287874]
[1764178220136,0.00504134,2976.7,2976.2,2.88409229]
[1764178220537,0.00504134,2976.7,2976.0,0.2684]
[1764178221440,0.00504134,2976.7,2975.7,0.00878645]
[1764178222328,0.16803,2976.3,2975.7,0.00878645]
[1764178223333,4.0694636,2976.7,2974.5,0.16813]
[1764178223535,0.16805,2975.9,2974.5,0.16813]
[1764178224239,0.16806,2975.8,2974.4,0.2684]
[1764178224440,0.16806,2975.8,2974.8,0.00504134]
[1764178224641,0.2209,2976.0,2974.8,0.00504134]
[1764178225136,0.16812,2974.8,2974.4,0.00332721]
[1764178225438,4.06442226,2974.9,2972.8,0.2684]
[1764178225630,0.2307,2975.2,2972.8,0.2684]
[1764178225631,0.2307,2974.4,2972.8,0.2684]
[1764178225937,0.16814,2974.3,2972.8,0.2684]
[1764178226144,0.00504134,2973.8,2973.3,0.00504134]
[1764178226442,0.0043581,2974.4,2973.6,0.2684]
[1764178227539,0.00504134,2974.3,2973.6,0.2684]
[1764178228940,6.00504134,2974.3,2973.3,0.00765774]
[1764178229141,6.00504134,2974.3,2971.5,1.37389419]
[1764178229142,0.00504134,2974.3,2972.3,3.39232787]
[1764178229647,0.00504134,2974.3,2972.8,0.2684]
[1764178230039,0.00504134,2974.3,2973.3,0.00504134]
[1764178231634,0.00504134,2974.3,2973.6,0.2684]
[1764178231836,0.00504134,2974.3,2973.3,0.00504134]
[1764178232841,0.16818,2974.1,2973.3,0.00504134]
[1764178233848,0.16819,2973.9,2973.3,0.00504134]
[1764178234146,5.3589399,2975.2,2973.3,0.00504134]
[1764178234147,1.16466404,2975.6,2975.2,0.2684]
[1764178234347,1.73591203,2975.8,2975.2,0.2684]
[1764178234348,0.39868,2977.6,2976.0,0.2684]
[1764178234543,0.0043581,2977.5,2976.0,0.2684]
[1764178234944,0.0043581,2977.5,2976.0,3.66072787]
[1764178235150,0.00504134,2977.0,2976.5,0.00504134]
[1764178235352,0.00504134,2977.0,2976.8,0.2878]
[1764178235643,0.00504134,2977.0,2976.5,0.00504134]
[1764178235644,0.00939944,2977.0,2976.5,0.00504134]
[1764178235842,0.00504134,2977.0,2976.8,0.2878]
[1764178236040,0.00391088,2977.5,2976.8,0.2878]
[1764178236349,0.2307,2979.2,2977.3,3.39232787]
[1764178236546,0.0043581,2979.1,2977.9,3.39232787]
[1764178236753,0.16786,2979.7,2977.6,0.45578]
[1764178236946,0.16787,2979.5,2977.6,0.2878]
[1764178237153,0.00504134,2978.8,2978.3,0.00504134]
[1764178237348,0.00504134,2978.8,2978.3,0.00852161]
[1764178237753,0.0043581,2978.7,2978.3,0.00852161]
[1764178238347,0.17295134,2978.8,2978.3,0.00416351]
[1764178238547,0.17295134,2978.8,2976.9,0.16802]
[1764178238952,0.17295134,2978.8,2977.2,3.39232787]
[1764178239153,0.00504134,2978.8,2976.8,0.2878]
[1764178239357,0.16793,2978.5,2976.8,0.2878]
[1764178239559,0.16793,2978.5,2977.4,0.00504134]
[1764178240148,0.43713,2978.4,2977.4,0.00504134]
[1764178241753,0.16795,2978.2,2977.4,0.00504134]
[1764178241951,0.2692,2978.4,2976.8,0.00248511]
[1764178241952,0.16797,2977.8,2976.8,0.00248511]
[1764178242147,0.2692,2978.4,2976.8,0.29028511]
[1764178242353,0.16796,2977.9,2976.8,0.00248511]
[1764178242746,0.2692,2978.4,2976.8,0.29028511]
[1764178242953,0.2692,2978.4,2977.3,0.00504134]
[1764178243347,0.00504134,2978.8,2977.3,0.00504134]
[1764178243551,0.00504134,2978.8,2977.6,0.2878]
[1764178243952,0.00504134,2978.8,2977.7,0.16797]
[1764178244150,0.00504134,2978.8,2977.6,0.2878]
[1764178244151,0.00504134,2978.8,2978.4,0.2878]
[1764178244348,1.9161599,2980.6,2978.4,0.2878]
[1764178244546,0.16785,2979.8,2978.4,0.2878]
[1764178245063,0.16786,2979.7,2978.4,0.2878]
[1764178245255,0.00504134,2979.2,2978.4,0.2878]
[1764178246163,0.00504134,2979.2,2977.6,0.2878]
[1764178246366,0.26724134,2979.2,2977.6,0.2878]
[1764178246857,0.16791,2978.9,2977.6,0.2878]
[1764178247455,0.26724134,2979.2,2977.3,0.00504134]
[1764178247456,0.16792,2978.7,2977.3,0.00504134]
[1764178248457,0.00504134,2979.2,2977.6,0.45577]
[1764178248658,0.00504134,2979.2,2977.6,3.84809787]
[1764178249265,0.17293134,2979.2,2977.6,3.84809787]
[1764178249571,0.1679,2979.1,2977.6,3.84809787]
[1764178249764,0.1679,2979.0,2977.6,3.84809787]
[1764178250857,0.16792,2978.7,2977.6,0.2878]
[1764178253673,0.26724134,2979.2,2977.6,3.84810787]
[1764178253872,0.1679,2979.1,2977.6,3.84810787]
[1764178254268,0.16793,2978.5,2977.6,0.2878]
[1764178254668,0.16789,2979.1,2977.6,0.2878]
[1764178255968,0.16791,2978.9,2977.6,0.2878]
[1764178256172,0.16791,2978.9,2977.6,3.68012787]
[1764178257479,0.16791,2978.9,2977.8,0.16797]
[1764178257774,5.76163141,2980.5,2977.6,3.68012787]
[1764178257775,0.16784,2980.1,2979.2,0.2878]
[1764178257973,0.16784,2980.1,2979.2,0.29113182]
[1764178258366,0.437,2980.8,2979.2,0.29113182]
[1764178258572,0.1678,2980.7,2979.3,2.70264977]
[1764178258772,0.00504134,2980.3,2979.7,0.00504134]
[1764178259377,0.00823991,2980.3,2979.7,0.00504134]
[1764178260473,0.16784,2980.2,2979.7,0.00504134]
[1764178260679,0.00823991,2980.3,2979.7,0.00504134]
[1764178260874,0.00823991,2980.3,2979.9,0.2878]
[1764178261075,1.1931599,2981.9,2980.1,0.16784]
[1764178261377,1.1931599,2981.9,2979.9,6.2878]
[1764178261378,1.1931599,2982.1,2981.3,0.2878]
[1764178261584,4.25537472,2983.3,2981.3,0.2878]
[1764178261585,1.1931599,2983.0,2981.4,3.38002563]
[1764178261766,0.43685,2983.4,2981.4,3.38002563]
[1764178261767,1.1931599,2983.3,2981.4,3.38002563]
[1764178261972,1.1931599,2983.3,2981.3,0.2878]
[1764178261973,1.4623599,2983.4,2981.5,4.33591356]
[1764178262173,0.00503254,2982.7,2982.2,0.00503254]
[1764178262373,0.00503254,2982.7,2981.6,0.2878]
[1764178263185,0.00290695,2983.4,2982.4,0.2878]
[1764178263378,1.36371685,2983.4,2981.6,0.2878]
[1764178263576,1.1931599,2983.3,2981.6,0.2878]
[1764178263778,1.1931599,2983.1,2981.6,0.2878]
[1764178264085,1.1931599,2983.3,2981.6,0.2878]
[1764178264279,0.00503254,2982.7,2982.2,0.00503254]
[1764178265284,0.2704,2982.4,2981.5,0.00378872]
[1764178265481,1.4635599,2982.4,2980.0,3.66782563]
[1764178265682,1.4594599,2981.6,2980.0,0.2878]
[1764178265982,0.16778,2981.1,2980.0,0.2878]
[1764178266177,0.1678,2980.8,2980.1,0.52462593]
[1764178266383,0.1678,2980.7,2980.3,0.00503254]
[1764178266572,0.16781,2980.5,2980.4,0.52462593]
[1764178267584,0.16781,2980.5,2978.7,3.38002563]
[1764178267585,6.0,2980.5,2978.0,3.38002563]
[1764178267776,1.19056375,2980.2,2978.0,3.38002563]
[1764178267980,0.16788,2979.3,2978.0,3.38002563]
[1764178268177,0.16789,2979.2,2978.0,3.38002563]
[1764178268582,0.00503254,2979.1,2978.5,0.00503254]
[1764178269082,0.16792,2978.6,2978.5,0.00503254]
[1764178269594,6.00388867,2978.6,2975.4,3.67152563]
[1764178269889,1.19168723,2977.6,2975.4,0.2915]
[1764178270078,0.16801,2977.1,2975.4,0.2915]
[1764178270280,0.2663,2977.2,2975.4,0.2915]
[1764178270486,0.00503254,2976.6,2976.0,0.00503254]
[1764178272491,0.00503254,2976.6,2976.3,0.2915]
[1764178272691,1.19168723,2978.1,2976.3,0.2915]
[1764178272887,1.35961723,2978.4,2976.3,0.2915]
[1764178273289,0.16793,2978.4,2976.3,0.2915]
[1764178273689,1.19168723,2978.5,2976.3,0.2915]
[1764178273989,0.00503254,2977.6,2976.3,0.2915]
[1764178274387,0.17301254,2977.6,2976.3,0.2915]
[1764178274693,0.16799,2977.4,2976.3,0.2915]
[1764178275592,0.00388867,2978.6,2977.2,3.67152563]
[1764178276190,0.00388867,2978.6,2977.2,0.2915]
[1764178276586,0.00503254,2978.2,2977.6,0.00503254]
[1764178276888,0.16795,2978.0,2977.6,0.00503254]
[1764178277096,0.16795,2978.0,2977.6,0.00855801]
[1764178278392,6.0,2978.0,2976.3,0.2915]
[1764178278589,3.38002563,2978.1,2975.4,0.2915]
[1764178278892,0.16799,2977.4,2976.3,0.2915]
[1764178279086,0.16801,2977.0,2975.4,0.2915]
[1764178279291,0.16797,2977.7,2975.7,3.38002563]
[1764178279492,0.00503254,2976.5,2975.9,0.00503254]
[1764178279792,1.19168723,2978.3,2976.3,0.2915]
[1764178279988,0.16795,2978.1,2976.7,3.38002563]
[1764178280293,0.16796,2977.9,2976.8,0.5253465]
[1764178280495,3.38002563,2978.4,2976.9,0.5253465]
[1764178280693,0.168,2977.1,2977.0,4.65e-05]
[1764178280991,0.168,2977.1,2975.3,3.38002563]
[1764178281185,0.168,2977.1,2976.0,0.00503254]
[1764178281186,0.00503254,2976.5,2976.0,0.00503254]
[1764178281587,0.16804,2976.4,2976.0,0.00503254]
[1764178281796,0.00503254,2976.5,2976.0,0.00503254]
[1764178282692,3.254e-05,2976.5,2976.3,0.2915]
[1764178283392,3.254e-05,2976.5,2976.3,6.2915]
[1764178283591,3.254e-05,2976.5,2976.3,0.2915]
[1764178287108,0.16806254,2976.5,2976.0,0.00503254]
[1764178287397,0.16804,2976.3,2975.4,0.29542382]
[1764178287592,0.16805,2976.2,2975.4,0.29542382]
[1764178287990,0.16807,2975.8,2975.4,0.00392382]
[1764178289994,3.254e-05,2976.5,2975.4,0.00392382]
[1764178290304,0.16805,2976.2,2975.4,0.00392382]
[1764178290498,3.254e-05,2976.5,2975.4,0.00392382]
[1764178291194,0.16804,2976.4,2975.4,0.00392382]
[1764178292597,0.16805,2976.1,2975.4,0.00392382]
[1764178292797,0.16806,2976.0,2975.5,0.5255068]
[1764178293001,0.16806,2976.0,2975.6,0.5255068]
[1764178293305,0.16806,2976.0,2975.7,0.5255068]
[1764178293502,0.16806,2975.9,2975.8,0.5255068]
[1764178293902,0.16806,2975.9,2975.4,0.00392382]
[1764178293903,3.254e-05,2976.5,2975.3,0.00503254]
[1764178294199,3.254e-05,2976.5,2972.8,1.16453076]
[1764178294200,0.16814,2974.6,2972.8,0.2915]
[1764178294394,1.19168723,2975.6,2973.3,4.06488847]
[1764178294599,0.1681,2975.3,2973.9,4.06488847]
[1764178294897,1.109,2976.1,2973.3,4.06488847]
[1764178295091,0.00504117,2975.1,2974.6,0.00504117]
[1764178298307,4.117e-05,2975.1,2974.6,0.00504117]
[1764178298607,1.35973723,2976.2,2975.2,0.2826]
[1764178298906,0.16805,2976.2,2975.2,0.2826]
[1764178299306,1.19168723,2976.4,2976.0,0.2826]
[1764178299616,1.19168723,2977.4,2976.0,0.2826]
[1764178299904,0.00257275,2976.4,2976.0,0.28567195]
[1764178301800,0.00504117,2976.5,2976.0,0.28567195]
[1764178302001,4.117e-05,2976.5,2976.0,0.28567195]
[1764178302506,0.16797,2977.5,2976.2,4.06488847]
[1764178302896,0.16797,2977.4,2976.0,0.45372195]
[1764178303302,0.00504117,2977.0,2976.0,0.28567195]
[1764178303903,0.17304117,2977.0,2976.0,0.28567195]
[1764178306309,0.16801,2976.7,2976.0,0.28567195]
[1764178306806,0.16802,2976.6,2976.0,0.28567195]
[1764178307401,0.16803,2976.4,2976.0,0.28567195]
[1764178307998,1.19168723,2976.7,2976.0,0.28567195]
[1764178308219,1.1967284,2977.0,2976.8,0.2826]
[1764178308410,0.00504117,2977.0,2976.8,0.2826]
[1764178308900,0.16797,2977.4,2976.8,0.2826]
[1764178308901,1.19492009,2977.5,2976.8,0.2826]